{"text_format":"3","workbook":"xlsx","n_sheets":2,"sheets":["ÎNCEPUT","INSTRUMENT PENTRU BUGET"],"not_rendered":{"defined_names":2},"read":"whole","date_system":"1900"}

{"sheet":"ÎNCEPUT","index":0,"n_rows":7,"n_cols":2,"rows_kept":7}
[null,"DESPRE ACEST ȘABLON"]
[null,"Urmăriți investițiile inițiale în site-ul web, Beneficii și Costuri sale utilizând acest Instrument de bugetare pentru site-ul web."]
[null,"Completați numele firmei și dată."]
[null,"Introduceți detaliile în tabele pentru a calcula automat totalur și măsurători de evaluare."]
[null,"Notă:  "]
[null,"Găsiți instrucțiuni suplimentare în coloana A din foaia de lucru INSTRUMENT PENTRU BUGET. Acest text a fost ascuns intenționat. Pentru a elimina textul, selectați coloana A, apoi DELETE. Pentru a reafișa textul, selectați coloana A, apoi schimbați culoarea de font."]
[null,"Pentru a afla mai multe despre tabelele din foaia de lucru, apăsați SHIFT, apoi F10 într-un tabel, selectați opțiunea TABEL, apoi TEXT ALTERNATIV."]

{"sheet":"INSTRUMENT PENTRU BUGET","index":1,"n_rows":43,"n_cols":6,"rows_kept":43,"merged":[[14,1,14,5],[22,1,22,5],[30,1,30,5],[38,1,38,5]]}
["Creați bugetul site-ului web în această foaie de lucru. Găsiți instrucțiuni utile despre cum să utilizați această foaie de lucru în celulele din această coloană. Apăsați săgeata în jos pentru a începe."]
["Introduceți numele firmei în celula din dreapta.","Numele firmei"]
["Titlul acestei foi de lucru se află în celula din dreapta.","Instrument de bugetare pentru site-ul web"]
["Introduceți dată în celula de la dreapta.","Dată"]
["Sfatul se află în celula din dreapta.","Celulele gri conțin calcule care nu ar trebui să fie modificate."]
["Introduceți detaliile în tabelul Rata, începând cu celula din dreapta. Următoarele instrucțiuni se află în celula A10.","Datele firmei","Rata"]
[null,"Rentabilitatea necesară",{"v":0.1,"d":"10%"}]
[null,"Cota TVA",{"v":0.3,"d":"30%"}]
[]
["Introduceți detaliile în tabelul Investiția inițială, începând cu celula din dreapta. Următoarele instrucțiuni se află în celula A16.","Investiția inițială în site-ul web","AN","1","2","3"]
[null,"Hardware (de exemplu, servere)",{"v":25000,"d":"25,000.00 lei"}]
[null,"Software (de exemplu, software-ul de catalog pentru comerț electronic)",{"v":15000,"d":"15,000.00 lei"}]
[null,"Dezvoltare (de exemplu, design și dezvoltare pentru site de la terți)",{"v":150000,"d":"150,000.00 lei"}]
[null,"Total investiții inițiale",{"$f":"SUBTOTAL(109,InvestițieInițială[AN])","v":{"v":190000,"d":"190,000.00 lei"}}]
[]
["Introduceți detaliile în tabelul Beneficii, începând cu celula de la dreapta. Următoarele instrucțiuni se află în celula A24.","Beneficii de la site-ul web","AN","1","2","3"]
[null,"Vânzări directe",null,{"v":15000,"d":"15,000.00 lei"},{"v":50000,"d":"50,000.00 lei"},{"v":75000,"d":"75,000.00 lei"}]
[null,"Vânzări cu creștere treptată, rezultate din eficiența îmbunătățită a responsabilului cu vânzările sau a promoțiilor",null,{"v":25000,"d":"25,000.00 lei"},{"v":25000,"d":"25,000.00 lei"},{"v":25000,"d":"25,000.00 lei"}]
[null,"Vânzări cu creștere treptată, rezultate în urma participării crescute a partenerilor",null,{"v":25000,"d":"25,000.00 lei"},{"v":25000,"d":"25,000.00 lei"},{"v":25000,"d":"25,000.00 lei"}]
[null,"Costuri de deplasare reduse",null,{"v":25000,"d":"25,000.00 lei"},{"v":25000,"d":"25,000.00 lei"},{"v":25000,"d":"25,000.00 lei"}]
[null,"Costurile serviciului pentru clienți reduse",null,{"v":50000,"d":"50,000.00 lei"},{"v":50000,"d":"50,000.00 lei"},{"v":50000,"d":"50,000.00 lei"}]
[null,"Beneficii totale",null,{"$f":"SUBTOTAL(109,Beneficii[1])","v":{"v":140000,"d":"140,000.00 lei"}},{"$f":"SUBTOTAL(109,Beneficii[2])","v":{"v":175000,"d":"175,000.00 lei"}},{"$f":"SUBTOTAL(109,Beneficii[3])","v":{"v":200000,"d":"200,000.00 lei"}}]
[]
["Introduceți detaliile în tabelul Costuri, începând cu celula din dreapta. Valorile sunt calculate automat în celulele care conțin formule. Următoarele instrucțiuni se află în celula A32.","Costuri (excluzând investițiile de capital inițiale)","AN","1","2","3"]
[null,"Costul vânzărilor",null,{"v":7500,"d":"7,500.00 lei"},{"v":25000,"d":"25,000.00 lei"},{"v":37500,"d":"37,500.00 lei"}]
[null,"Întreținere",null,{"v":15000,"d":"15,000.00 lei"},{"v":15000,"d":"15,000.00 lei"},{"v":15000,"d":"15,000.00 lei"}]
[null,"Management de proiect, asistență pentru clienți",null,{"v":35000,"d":"35,000.00 lei"},{"v":35000,"d":"35,000.00 lei"},{"v":35000,"d":"35,000.00 lei"}]
[null,"Publicitate online, înregistrarea motorului de căutare",null,{"v":10000,"d":"10,000.00 lei"},{"v":10000,"d":"10,000.00 lei"},{"v":10000,"d":"10,000.00 lei"}]
[null,"Deprecierea cheltuielilor de capital (calcul utilizează o perioadă de trei ani)",null,{"$f":"InvestițieInițială[[#Totals],[AN]]/3","v":{"v":63333.333333333336,"d":"63,333.33 lei"}},{"$f":"InvestițieInițială[[#Totals],[AN]]/3","v":{"v":63333.333333333336,"d":"63,333.33 lei"}},{"$f":"InvestițieInițială[[#Totals],[AN]]/3","v":{"v":63333.333333333336,"d":"63,333.33 lei"}}]
[null,"Costuri totale",null,{"$f":"SUBTOTAL(109,Costuri[1])","v":{"v":130833.33333333334,"d":"130,833.33 lei"}},{"$f":"SUBTOTAL(109,Costuri[2])","v":{"v":148333.33333333334,"d":"148,333.33 lei"}},{"$f":"SUBTOTAL(109,Costuri[3])","v":{"v":160833.33333333334,"d":"160,833.33 lei"}}]
[]
["Valorile sunt calculate automat în tabelul Totaluri, începând cu celula din dreapta. Următoarele instrucțiuni se află în celula A40.","Totaluri","AN","1","2","3"]
[null,"Beneficii nete (costuri)",null,{"$f":"Beneficii[[#Totals],[1]]-Costuri[[#Totals],[1]]","v":{"v":9166.666666666657,"d":"9,166.67 lei"}},{"$f":"Beneficii[[#Totals],[2]]-Costuri[[#Totals],[2]]","v":{"v":26666.666666666657,"d":"26,666.67 lei"}},{"$f":"Beneficii[[#Totals],[3]]-Costuri[[#Totals],[3]]","v":{"v":39166.66666666666,"d":"39,166.67 lei"}}]
[null,"Taxe",null,{"$f":"D33*CotaTVA","v":{"v":2749.999999999997,"d":"2,750.00 lei"}},{"$f":"E33*CotaTVA","v":{"v":7999.999999999996,"d":"8,000.00 lei"}},{"$f":"F33*CotaTVA","v":{"v":11749.999999999996,"d":"11,750.00 lei"}}]
[null,"Valoare după taxe",null,{"$f":"D33-D34","v":{"v":6416.666666666661,"d":"6,416.67 lei"}},{"v":18666.66666666666,"d":"18,666.67 lei"},{"v":27416.66666666666,"d":"27,416.67 lei"}]
[null,"Depreciere readăugată",null,{"$f":"D29","v":{"v":63333.333333333336,"d":"63,333.33 lei"}},{"$f":"E29","v":{"v":63333.333333333336,"d":"63,333.33 lei"}},{"$f":"F29","v":{"v":63333.333333333336,"d":"63,333.33 lei"}}]
[null,"Flux monetar",{"$f":"-InvestițieInițială[[#Totals],[AN]]","v":{"v":-190000,"d":"-190,000.00 lei"}},{"$f":"D35+D36","v":{"v":69750,"d":"69,750.00 lei"}},{"v":82000,"d":"82,000.00 lei"},{"v":90750,"d":"90,750.00 lei"}]
[null,"Flux monetar cumulativ",{"$f":"C37","v":{"v":-190000,"d":"-190,000.00 lei"}},{"$f":"C38+D37","v":{"v":-120250,"d":"-120,250.00 lei"}},{"v":-38250,"d":"-38,250.00 lei"},{"v":52500,"d":"52,500.00 lei"}]
[]
["Măsurătorile de evaluare sunt calculate automat în tabelul Măsurători, începând cu celula din dreapta.","Măsurători de evaluare","Valori"]
[null,"Valoarea netă prezentă (NPV)",{"$f":"C37+(NPV(ROR,D37:F37))","v":{"v":9359.504132231377,"d":"9,359.50 lei"}}]
[null,"Rentabilitatea internă (IRR)",{"$f":"IRR(C37:F37)","v":{"v":0.12655165144706393,"d":"12.66%"}}]
[null,"Perioadă de returnare a banilor (în ani)",{"$f":"IF(F38<=0,\"Depășește 3 ani\",IF(E38<=0,(F37-F38)/F37+2,IF(D38<=0,(E37-E38)/E37+1,IF(C38<=0,(D37-D38)/D37,\"NA\"))))","v":{"v":2.4214876033057853,"d":"2.42"}}]